Cogmind - Beta 11.1 @@@ ROGUE MODE // 2022.05.04 @ 16:13:15 // Winter2019/RPGLIKE Player: Kiks Result: Destroyed by S-10 Pest with Light Assault Rifle Performance ------------- Evolutions (2) 1000 Regions Visited (7) 1400 Robots Destroyed (81) 405 Value Destroyed (1403) 1403 Prototype IDs (1) 20 Alien Tech Used (0) 0 Bonus (0) 0 TOTAL SCORE: 4228 Bonus ------- None Cogmind --------- Core Integrity 0/600 Matter 300/300 Energy 265/265 System Corruption 0% Temperature Cool (0) Movement Flying (29) Location -8/Materials Parts ------- > --- POWER (2) -------- Reinforced Ion Engine > --- PROPULSION (4) --- Flight Unit VTOL Module Improved Flight Unit Improved Flight Unit > --- UTILITY (3) ------ Signal Interpreter > --- WEAPON (3) ------- Maul Maul Axe > --- INVENTORY (3) ---- Flight Unit Flight Unit Flight Unit Peak State ------------ > --- POWER ------------ Light Ion Engine > --- PROPULSION ------- Flight Unit Improved Flight Unit Improved Flight Unit Improved Flight Unit > --- UTILITY ---------- Sensor Array Signal Interpreter Shield Generator > --- WEAPON ----------- Maul Maul Maul > --- INVENTORY -------- Flight Unit [Rating: 21] Favorites ----------- Power Light Ion Engine Engine Light Ion Engine Propulsion Flight Unit Leg Aluminum Leg Flight Unit Flight Unit Utility Shield Generator Device Shield Generator Processor Signal Interpreter Protection Light Armor Plating Weapon Maul Ballistic Gun Assault Rifle Impact Weapon Maul Slashing Weapon Axe Build | -11 -10 -10 -9 -9 -9 -8 -8 ------- Run | Scr Mat Min Mat Min Exi Min Mat Slots Evolved 8 | 3 1 . 4 . . . . Power 1 | . . . 1 . . . . Propulsion 3 | 1 1 . 1 . . . . Utility 2 | 1 . . 1 . . . . Weapon 2 | 1 . . 1 . . . . Parts Attached 29 | 4 10 1 10 1 . 3 . Power 3 | 1 . 1 . 1 . . . Engine 3 | 1 . 1 . 1 . . . Core . | . . . . . . . . Reactor . | . . . . . . . . Propulsion 16 | 2 7 . 6 . . 1 . Treads . | . . . . . . . . Leg 5 | 2 3 . . . . . . Wheel . | . . . . . . . . Hover . | . . . . . . . . Flight 11 | . 4 . 6 . . 1 . Utility 5 | . 1 . 3 . . 1 . Device 3 | . 1 . 1 . . 1 . Storage . | . . . . . . . . Processor 1 | . . . 1 . . . . Hackware . | . . . . . . . . Protection 1 | . . . 1 . . . . Artifact . | . . . . . . . . Weapon 5 | 1 2 . 1 . . 1 . Energy Gun . | . . . . . . . . Energy Cannon . | . . . . . . . . Ballistic Gun 1 | 1 . . . . . . . Ballistic Cannon . | . . . . . . . . Launcher . | . . . . . . . . Special Weapon . | . . . . . . . . Impact Weapon 3 | . 2 . 1 . . . . Slashing Weapon 1 | . . . . . . 1 . Piercing Weapon . | . . . . . . . . Special Melee Weapon . | . . . . . . . . Unidentified Prototypes 1 | . . . 1 . . . . Parts Lost 2 | . . . 1 . . . 1 Power . | . . . . . . . . Propulsion . | . . . . . . . . Utility 2 | . . . 1 . . . 1 Weapon . | . . . . . . . . Highest Loss Streak 1 | . . . 1 . . . 1 To Critical Strikes . | . . . . . . . . Average Slot Usage (%) 87 | . 84 87 96 91 91 83 80 Engine 11 | . 13 12 9 8 8 8 8 Leg 10 | . 25 . . . . . . Flight 21 | . 2 37 35 33 33 33 33 Device 11 | . 13 12 12 8 8 . . Processor 3 | . . . 7 8 8 8 8 Protection 2 | . . . 2 8 8 8 5 Impact Weapon 25 | . 27 25 26 25 25 21 16 Naked Turns . | . . . . . . . . Heaviest Build 23 | 5 11 11 16 23 23 23 22 Greatest Support 24 | 20 20 12 24 23 23 23 23 Greatest Overweight (x) 3 | . 3 . . . . . . Average Overweight (x) . | . . . . . . . . Largest Inventory Capacity 3 | 3 3 3 3 3 3 3 3 Average Capacity 3 | 3 3 3 3 3 3 3 3 Most Carried 3 | . 3 3 3 1 1 3 3 Average Carried 2 | . 2 3 1 1 1 2 3 Final Capacity 3 | 3 3 3 3 3 3 3 3 Final Carried 3 | . 3 3 1 1 1 3 3 Class Distribution -------------------- 59% | Mutant 35% | Scavenger-Sprinter 5% | Sprinter Dominant Class ---------------- Mutant | -10/Materials Mutant | -10/Mines Scavenger-Sprinter | -9/Materials Scavenger-Sprinter | -9/Mines Scavenger-Sprinter | -9/Exiles Scavenger-Sprinter | -8/Mines Scavenger-Sprinter | -8/Materials Resources | -11 -10 -10 -9 -9 -9 -8 -8 ----------- Run | Scr Mat Min Mat Min Exi Min Mat Matter Collected 518 | 243 97 13 102 23 . 40 . Remotely 20 | . . . . . . 20 . Salvage Created 2095 | 12 303 447 810 264 . 101 158 Parts 61 | 3 9 16 22 5 . 2 4 Haulers Intercepted 6 | . 2 . 3 . . . 1 Recyclers Shooed . | . . . . . . . . Parts Field Recycled . | . . . . . . . . Retrieved Matter . | . . . . . . . . Parts Self-Destructed . | . . . . . . . . Prevented . | . . . . . . . . Kills | -11 -10 -10 -9 -9 -9 -8 -8 ------- Run | Scr Mat Min Mat Min Exi Min Mat Combat Hostiles Destroyed 46 | . 12 6 16 6 . 2 4 Melee 29 | . 8 5 9 4 . 1 2 Classes Destroyed 11 | 1 6 1 2 1 . . . Worker 8 | . 1 4 1 2 . . . Builder 4 | . . 4 . . . . . Tunneler 5 | 1 . 3 . . . 1 . Hauler 6 | . 2 . 3 . . . 1 Recycler 6 | . 1 3 1 . . 1 . Operator 1 | . . . 1 . . . . Watcher 5 | . 3 . 2 . . . . Swarmer 23 | . 6 6 6 . . 2 3 Grunt 17 | . 6 . 7 4 . . . Brawler 2 | . . . . 2 . . . Sentry 4 | . . . 3 . . . 1 Best Kill Streak 11 | 1 5 11 9 3 . 2 3 Combat Bots Only 7 | . 5 3 7 3 . 2 3 Max Kills in Single Turn 1 | 1 1 1 1 1 . 1 1 Gunslinging . | . . . . . . . . Exploded . | . . . . . . . . Melee 1 | . 1 1 1 1 . 1 1 Uniques/NPCs Destroyed . | . . . . . . . . Combat | -11 -10 -10 -9 -9 -9 -8 -8 -------- Run | Scr Mat Min Mat Min Exi Min Mat Damage Taken 1673 | . 623 68 451 150 . 214 167 Core 1314 | . 508 56 352 110 . 150 138 Absorbed by Shields 298 | . 232 30 36 . . . . Redirected to Core 880 | . 319 32 308 53 . 93 75 Core Remaining (%) 67 | 100 . 80 . . . 23 . Volleys Fired 1 | 1 . . . . . . . Largest 1 | 1 . . . . . . . Hottest 20 | 20 . . . . . . . Shots Fired 1 | 1 . . . . . . . Gun 1 | 1 . . . . . . . Cannon . | . . . . . . . . Launcher . | . . . . . . . . Special . | . . . . . . . . Kinetic 1 | 1 . . . . . . . Thermal . | . . . . . . . . Explosive . | . . . . . . . . Electromagnetic . | . . . . . . . . Robot Hit Streak . | . . . . . . . . Robot Miss Streak 1 | 1 . . . . . . . Penetration Max . | . . . . . . . . Secondary Targets . | . . . . . . . . Shots Hit Robots 136 | . 36 27 37 18 . 8 10 Core Hits 25 | 1 5 4 10 3 . 1 1 Critical Kills 8 | . 3 1 2 1 . . 1 Critical Parts Destroyed 33 | . 8 8 10 4 . 1 2 Critical Strikes 41 | . 11 9 12 5 . 1 3 Smash 41 | . 11 9 12 5 . 1 3 Melee Attacks 195 | . 61 32 50 22 . 14 16 Impact 191 | . 61 32 50 22 . 12 14 Slashing 4 | . . . . . . 2 2 Piercing . | . . . . . . . . Sneak Attacks 33 | . 5 15 8 2 . 2 1 Combat Hostiles 1 | . . . 1 . . . . Follow-up Attacks 30 | . 10 5 9 3 . 1 2 Damage Inflicted 6930 | 14 1714 1663 1882 744 . 444 469 Guns 14 | 14 . . . . . . . Cannons . | . . . . . . . . Explosions . | . . . . . . . . Melee 6916 | . 1714 1663 1882 744 . 444 469 Ramming . | . . . . . . . . Kinetic 14 | 14 . . . . . . . Thermal . | . . . . . . . . Explosive . | . . . . . . . . Electromagnetic . | . . . . . . . . Impact 6882 | . 1714 1663 1882 744 . 444 435 Slashing 34 | . . . . . . . 34 Piercing . | . . . . . . . . Highest Corruption 4 | . . . 4 4 4 4 . Average Corruption 4 | . . . 4 4 4 4 . Corruption Purged . | . . . . . . . . Corruption Blocked . | . . . . . . . . Effects 10 | . . . 2 4 2 2 . Message Errors 1 | . . . . . . 1 . Matter Fused 4 | . . . 1 2 1 . . Parts Rejected 1 | . . . . . . 1 . Data Loss (minor) 3 | . . . 1 2 . . . Data Loss (major) 1 | . . . . . 1 . . Overload Shots . | . . . . . . . . Overflow Damage 3267 | . 682 943 804 344 . 234 260 Projectiles . | . . . . . . . . Explosions . | . . . . . . . . Melee 3267 | . 682 943 804 344 . 234 260 Knockbacks 14 | . 3 4 4 1 . 1 1 Impact 14 | . 3 4 4 1 . 1 1 Kinetic . | . . . . . . . . Secondary . | . . . . . . . . Self-Inflicted Damage . | . . . . . . . . Shots . | . . . . . . . . Rammed . | . . . . . . . . Targets Rammed . | . . . . . . . . Kicked . | . . . . . . . . Crushed . | . . . . . . . . Highest Temperature 16 | . . . 16 . . . . Average Temperature 4 | . . . 4 . . . . Received Heat Transfer 237 | . 106 . 83 30 . . 18 Siege Activations . | . . . . . . . . Robots Corrupted . | . . . . . . . . Combat Hostiles . | . . . . . . . . Parts Fried 44 | . 10 14 11 5 . . 4 Impact Corruptions 110 | . 26 31 29 6 . 10 8 Robots Melted . | . . . . . . . . Combat Hostiles . | . . . . . . . . Parts Melted . | . . . . . . . . Heat Transferred . | . . . . . . . . Parts Sabotaged . | . . . . . . . . Parts Stolen . | . . . . . . . . Parts Stripped . | . . . . . . . . Power Chain Reactions . | . . . . . . . . Missiles Intercepted . | . . . . . . . . Alert | -11 -10 -10 -9 -9 -9 -8 -8 ------- Run | Scr Mat Min Mat Min Exi Min Mat Peak Influence 403 | 5 297 313 403 306 . 75 231 Initial 156 | . 3 58 121 156 . . 29 Average 153 | . 117 209 196 237 . 53 96 Maximum Alert Level 2 | . 1 1 2 1 . . 1 Low Security (%) 60 | 100 78 45 42 7 . 100 85 Level 1 39 | . 21 54 52 92 . . 14 Level 2 . | . . . 4 . . . . Level 3 . | . . . . . . . . Level 4 . | . . . . . . . . Level 5 . | . . . . . . . . High Security . | . . . . . . . . Max Security . | . . . . . . . . Squads Dispatched 6 | . 2 . 1 . . . 3 Investigation 2 | . 1 . . . . . 1 Extermination . | . . . . . . . . Reinforcement 2 | . 1 . 1 . . . . Assault 1 | . . . . . . . 1 Garrison 1 | . . . . . . . 1 Intercept . | . . . . . . . . Searches Triggered . | . . . . . . . . Construction Impeded . | . . . . . . . . Haulers Reinforced . | . . . . . . . . Active Scanning Responses . | . . . . . . . . Cargo Convoy Interrupts . | . . . . . . . . Stealth | -11 -10 -10 -9 -9 -9 -8 -8 --------- Run | Scr Mat Min Mat Min Exi Min Mat Distress Signals 2 | . 1 . 1 . . . . Communications Jammed . | . . . . . . . . Distress Signals . | . . . . . . . . Times Spotted 65 | . 18 9 20 6 . 4 8 Peak Tracking Total 7 | . 6 3 5 3 . 4 7 Tactical Retreats 4 | . 1 1 1 . . . 1 Traps | -11 -10 -10 -9 -9 -9 -8 -8 ------- Run | Scr Mat Min Mat Min Exi Min Mat Traps Triggered 1 | . 1 . . . . . . Indirectly . | . . . . . . . . Trap Hack Attempts . | . . . . . . . . Triggered . | . . . . . . . . Disarmed . | . . . . . . . . Reprogrammed . | . . . . . . . . Reused . | . . . . . . . . Traps Extracted . | . . . . . . . . Installed . | . . . . . . . . Triggered . | . . . . . . . . Machines | -11 -10 -10 -9 -9 -9 -8 -8 ---------- Run | Scr Mat Min Mat Min Exi Min Mat Machines Disabled 2 | . . . 1 . . . 1 Max in Single Turn 1 | . . . 1 . . . 1 Garrison Access 1 | . . . . . . . 1 Machines Sabotaged . | . . . . . . . . Garrisons Compromised . | . . . . . . . . Overloaded Fab Kills . | . . . . . . . . Hacking | -11 -10 -10 -9 -9 -9 -8 -8 --------- Run | Scr Mat Min Mat Min Exi Min Mat Machines Accessed 12 | . 5 . 5 . 1 . 1 Terminals 11 | . 5 . 5 . . . 1 Fabricators . | . . . . . . . . Repair Stations . | . . . . . . . . Recycling Units . | . . . . . . . . Scanalyzers . | . . . . . . . . Garrison Access . | . . . . . . . . Total Hacks 58 | . 15 . 15 . 23 . 5 Successful 38 | . 3 . 10 . 23 . 2 Failed 20 | . 12 . 5 . . . 3 Catastrophic 4 | . 4 . . . . . . Database Lockouts . | . . . . . . . . Manual 27 | . 15 . 12 . . . . Terminals 35 | . 15 . 15 . . . 5 Fabricators . | . . . . . . . . Repair Stations . | . . . . . . . . Recycling Units . | . . . . . . . . Scanalyzers . | . . . . . . . . Garrison Access . | . . . . . . . . Terminal Hacks 32 | . 2 . 5 . 23 . 2 Record 24 | . . . . . 23 . 1 Level Access Points 1 | . . . 1 . . . . Emergency Access Points 1 | . . . 1 . . . . Unreport Threat 5 | . 2 . 2 . . . 1 Locate Traps 1 | . . . 1 . . . . Fabricator Hacks . | . . . . . . . . Repair Station Hacks . | . . . . . . . . Recycling Unit Hacks . | . . . . . . . . Scanalyzer . | . . . . . . . . Garrison Access Hacks . | . . . . . . . . Unauthorized Hacks 6 | . 1 . 5 . . . . Terminals 6 | . 1 . 5 . . . . Botnet 6 | . 1 . 5 . . . . Fabricators . | . . . . . . . . Repair Stations . | . . . . . . . . Recycling Units . | . . . . . . . . Scanalyzers . | . . . . . . . . Garrison Access . | . . . . . . . . Data Cores Recovered . | . . . . . . . . Used . | . . . . . . . . Hacking Detections 10 | . 5 . 4 . . . 1 Full Trace Events 3 | . 2 . . . . . 1 Feedback Events . | . . . . . . . . Feedback Blocked . | . . . . . . . . Robot Schematics Acquired . | . . . . . . . . Robots Built . | . . . . . . . . Authchips . | . . . . . . . . Time . | . . . . . . . . Total Robot Build Rating . | . . . . . . . . Part Schematics Acquired . | . . . . . . . . Parts Built . | . . . . . . . . Authchips . | . . . . . . . . Time . | . . . . . . . . Total Part Build Rating . | . . . . . . . . Parts Repaired . | . . . . . . . . Time . | . . . . . . . . Parts Recycled . | . . . . . . . . Recycled Matter . | . . . . . . . . Retrieved Matter . | . . . . . . . . Retrieved Components . | . . . . . . . . Parts Scanalyzed . | . . . . . . . . Part Schematics Acquired . | . . . . . . . . Parts Damaged . | . . . . . . . . Bothacking | -11 -10 -10 -9 -9 -9 -8 -8 ------------ Run | Scr Mat Min Mat Min Exi Min Mat Used RIF Installer . | . . . . . . . . Robots Hacked . | . . . . . . . . Non-combat . | . . . . . . . . Combat . | . . . . . . . . Robot Hacks Applied . | . . . . . . . . Relay Couplers Released 1 | . . . . . . . 1 Machine Destruction 1 | . . . . . . . 1 Fabnet Peak Effective % . | . . . . . . . . Robots Rewired . | . . . . . . . . Allies Hacked . | . . . . . . . . Hacks Repelled . | . . . . . . . . Allies | -11 -10 -10 -9 -9 -9 -8 -8 -------- Run | Scr Mat Min Mat Min Exi Min Mat Total Allies . | . . . . . . . . Largest Group . | . . . . . . . . Highest-Rated Group . | . . . . . . . . Highest-Rated Ally . | . . . . . . . . Total Orders . | . . . . . . . . Ally Attacks . | . . . . . . . . Total Damage . | . . . . . . . . Kills . | . . . . . . . . Allies Corrupted . | . . . . . . . . Allies Melted . | . . . . . . . . Intel | -11 -10 -10 -9 -9 -9 -8 -8 ------- Run | Scr Mat Min Mat Min Exi Min Mat Robot Analysis Total . | . . . . . . . . Derelict Logs Recovered 1 | . . 1 . . . . . Drone Launches . | . . . . . . . . Drone Recoveries . | . . . . . . . . Exploration | -11 -10 -10 -9 -9 -9 -8 -8 ------------- Run | Scr Mat Min Mat Min Exi Min Mat Turns Passed 1834 | 51 734 273 308 211 112 76 69 Spaces Moved 2647 | 40 499 548 475 493 385 125 82 Core 7 | 6 1 . . . . . . Treads . | . . . . . . . . Legs 424 | 34 390 . . . . . . Wheels . | . . . . . . . . Hover . | . . . . . . . . Flight 2216 | . 108 548 475 493 385 125 82 Fastest Speed 29 | 50 34 34 29 29 29 29 29 Average Speed 45 | 109 102 34 30 29 29 29 29 Slowest Speed 200 | 120 200 34 34 29 29 29 29 Overloaded Moves . | . . . . . . . . Propulsion Burnouts . | . . . . . . . . Robots Hopped 5 | . 1 2 . 2 . . . Cave-ins Triggered . | . . . . . . . . Exploration Rate (%) 52 | 4 75 98 44 84 69 33 14 Regions Visited 7 Branch Regions 4 Pre-discovered Areas 2 | . . 1 . . 1 . . Known Exits Taken 4 | . . . 1 1 1 1 . Unknown Exits Taken 3 | 1 1 1 . . . . . Scrap Searched 3 | . . 1 . 1 . 1 . Spaces Dug . | . . . . . . . . Terrain Destroyed . | . . . . . . . . Melee . | . . . . . . . . Projectile . | . . . . . . . . AOE . | . . . . . . . . Terrain Rammed . | . . . . . . . . Walls Destroyed . | . . . . . . . . Machines Disabled . | . . . . . . . . Actions | -11 -10 -10 -9 -9 -9 -8 -8 --------- Run | Scr Mat Min Mat Min Exi Min Mat Total 2946 | 44 615 580 554 524 384 142 103 Wait 71 | . 28 2 19 13 . . 9 Move 2630 | 39 496 543 474 488 384 124 82 Hop 5 | . 1 2 . 2 . . . Pick Up 6 | . 4 . . . . 2 . Fast Attach 25 | 4 10 . 8 1 . 2 . Attach 2 | . . . 2 . . . . Detach 1 | . 1 . . . . . . Swap 2 | . . 1 . . . 1 . Drop 18 | . 8 1 5 1 . 3 . Fire 1 | 1 . . . . . . . Melee 147 | . 50 24 36 15 . 10 12 Ram . | . . . . . . . . Kick . | . . . . . . . . Crush . | . . . . . . . . Escape Stasis . | . . . . . . . . Rewire . | . . . . . . . . Trap . | . . . . . . . . Miscellaneous 38 | . 17 7 10 4 . . . Route ------- -11/Scrapyard -10/Materials (discovered 4 exits: *Mat x2 / [*Min x2]) -10/Mines (discovered 2 exits: *Mat x2) -9/Materials (discovered 6 exits: *Mat x3 / *Min x2 / *Sto) -9/Mines (discovered 2 exits: *Mat / *Exi) -9/Exiles -8/Mines -8/Materials History --------- Turn | Location | Event 1 | -11/Scrapyard | Upgraded with Propulsion slot (x1) 1 | -11/Scrapyard | Upgraded with Utility slot (x1) 1 | -11/Scrapyard | Upgraded with Weapon slot (x1) 4 | -11/Scrapyard | Discovered new exit (range 16) 52 | -11/Scrapyard | Entered Materials 128 | -10/Materials | Discovered new exit (range 16) 303 | -10/Materials | Build established: Mutant 359 | -10/Materials | Discovered new exit (range 5) 547 | -10/Materials | Discovered new exit (range 15) 720 | -10/Materials | Reached level 2 729 | -10/Materials | Upgraded with Propulsion slot (x1) 769 | -10/Materials | Discovered new exit (range 10) 786 | -10/Materials | Entered Mines 923 | -10/Mines | Learned Materials terminal intel 941 | -10/Mines | Discovered new exit (range 14) 1017 | -10/Mines | Discovered new exit (range 6) 1030 | -10/Mines | Learned location of Storage (-9) 1059 | -10/Mines | Entered Materials 1060 | -9/Materials | Loaded intel: 12 terminal locations 1061 | -9/Materials | Reached level 3 1075 | -9/Materials | Reached level 4 1094 | -9/Materials | Upgraded with Propulsion slot (x1) 1094 | -9/Materials | Upgraded with Utility slot (x1) 1094 | -9/Materials | Upgraded with Weapon slot (x1) 1154 | -9/Materials | Discovered new exit (range 15) 1159 | -9/Materials | Identified exit to Storage 1164 | -9/Materials | Identified exit to Materials 1256 | -9/Materials | Discovered new exit (range 11) 1261 | -9/Materials | Core integrity fell below 50% 1283 | -9/Materials | Reached level 5 1307 | -9/Materials | Destroyed 7 combat bots 1349 | -9/Materials | Upgraded with Power slot (x1) 1349 | -9/Materials | Discovered new exit (range 11) 1367 | -9/Materials | Identified exit to Mines 1367 | -9/Materials | Entered Mines 1423 | -9/Mines | Found a hidden stash of uninstalled traps 1494 | -9/Mines | Deemed a non-threat by the Exiles lab entrance 1494 | -9/Mines | Discovered new exit (range 5) 1514 | -9/Mines | Discovered exit to Materials (range 9) 1539 | -9/Mines | Reached level 6 1565 | -9/Mines | Build established: Scavenger-Sprinter 1578 | -9/Mines | Identified exit to Exiles 1578 | -9/Mines | Entered Exiles 1586 | -9/Exiles | Met 8R-AWN 1590 | -9/Exiles | Met EX-HEX 1614 | -9/Exiles | Met EX-DEC 1622 | -9/Exiles | Visited The Gauntlet 1648 | -9/Exiles | Met EX-BIN 1678 | -9/Exiles | Learned location of Zion (-6) 1687 | -9/Exiles | Discovered new exit (range 10) 1689 | -9/Exiles | Identified exit to Mines 1690 | -9/Exiles | Entered Mines 1754 | -8/Mines | Discovered exit to Materials (range 10) 1766 | -8/Mines | Entered Materials 1767 | -8/Materials | Core integrity fell below 50% 1768 | -8/Materials | Reached level 7 1781 | -8/Materials | Garrison activated, responded to threat 1787 | -8/Materials | Core integrity fell below 20% 1795 | -8/Materials | Reached level 8 1835 | -8/Materials | Destroyed by S-10 Pest with Light Assault Rifle Last Messages --------------- 01808_ K-01 Serf collects debris. 01815_ Destroyed Flight Unit. 01815_ S-10 Pest system corrupted by crushing effect. 01815_ Lgt. Armor Plating destroyed. 01821_ S-10 Pest suffers critical hit (Smash). 01821_ Destroyed Lgt. Assault Rifle. 01821_ Destroyed Lgt. Ion Engine. 01821_ S-10 Pest system corrupted by crushing effect. 01821_ S-10 Pest knocked back. 01827_ Destroyed Flight Unit. 01827_ S-10 Pest system corrupted by crushing effect. 01828_ S-10 Pest system terminally corrupted. 01828_ Lgt. Ion Engine fried. 01830_ Destroyed Flight Unit. 01830_ S-10 Pest system corrupted by crushing effect. 01830_ Lgt. Ion Engine fried. 01830_ Lgt. Assault Rifle fried. 01830_ S-10 Pest destroyed. 01834_ Maul follow-up attack on S-10 Pest. [Achievement: I Was Wrong!] Map ----- +----------------------------------------------------+ | ?????????????????????????????????????????????????? | | ?????????????????????????????????????????????????? | | ?????????????????????????????????????????????????? | | ?????????????????????????????????????????????????? | | ?????????????????????????????????????????????????? | | ????????????????????????????? ????????????????? | | ??????????????????????????? ????????????????? | | ??????????????????????????? ????????????????? | | ??????????????????????????? ???????????????? | | ??????????????????????????" ??????????????? | | ??????? ???????????????"" ??????????????? | | ????? ??????????#???"" ???????????????? | | ???? ########### ??""" ???????????????? | | ???? ? "" ???????????????? | | ????? """ ????????????????? | | ?????? ? ! """ ????????????????? | | ??????? #??# """ #????????????????? | | ?????? #??# " #????????????????? | | ??????? " #??#" #??#######???????? | | ??????? """ #??#T #### #???????? | | ????? """ #??#" #???????? | | ???? """ [= #??# ] #???????? | | ???+ "" [! #??# #???????? | | ???# """ %! #??######## #### #???????? | | ???# "" #??# T = # #??## ########## | | ???# "" " " #??# s @ # #???# # [ | | ??# " " " #??# """%+% #???# # ] | | ??# !" =#### """ # #???# + | | ??# ]=] + """ # #???# # | | ??# ]=%#### # #???# ########## | | ??# #########+#??######## #???# #####????? | | ???##+##???????? ] ?????????# #???# #????? | | ??? ??????????? ] =????????# #???# #????? | | ???!???????????? =!???????+ #???# #????? | | ???????????????? ???????# #???####+####????? | | ???????????????# [ ??????# #????? ??????? | | ???????????????######???????# #????# #????? | | ????????????????????????????##+##????#"S #????? | | ?????????????????????????????????????#""" #????? | | ?????????????????????????????????????# "" #????? | | ?????????????????????????????????????# #????? | | ?????????????????????????????????????########????? | | ?????????????????????????????????????????????????? | | ?????????????????????????????????????????????????? | | ?????????????????????????????????????????????????? | | | | | | | | | | | +----------------------------------------------------+ Best States ------------- Heat Dissipation 73 Energy Generation 12 Energy Capacity 265 Matter Stores 300 Matter Capacity 300 Sight Range 16 Robot Scan Range 14 Terrain Scan Density 10 Armor Coverage 150 Evasion (%) 64 Item Schematics ----------------- None Robot Schematics ------------------ None Fabricated ------------ Nothing Alien Tech Used ----------------- None Achievements -------------- I Was Wrong! Challenges ------------ None RPGLIKE | -11 -10 -10 -9 -9 -9 -8 -8 --------- Run | Scr Mat Min Mat Min Exi Min Mat Levels Raised 7 | . 1 . 3 1 . . 2 XP Earned 14430 | 3000 1625 1200 3720 1200 200 750 2735 XP Spent 8960 | 3000 1300 . 4660 . . . . Upgrades 23 | 6 3 . 14 . . . . Power Slot 1 | . . . 1 . . . . Propulsion Slot 3 | 1 1 . 1 . . . . Utility Slot 2 | 1 . . 1 . . . . Weapon Slot 2 | 1 . . 1 . . . . Heat Dissipation 8 | . . . 8 . . . . Mass Support 1 | . . . 1 . . . . Inventory Capacity 3 | 3 . . . . . . . Melee Accuracy 3 | . 2 . 1 . . . . Protomatter Created 274 | . 157 22 62 27 . . 6 Integrity Restored 724 | . 349 108 186 81 . . . Core 714 | . 339 108 186 81 . . . Parts 10 | . 10 . . . . . . Protomatter Decayed 30 | . 30 . . . . . . Game ------ Seed HybridImpactDesublimator Manual? 0 Play Time 00:21:41 Cumulative 116.2 hours Start 2022.05.04 @ 15:52:28 End 2022.05.04 @ 16:13:15 Sessions 1 Manual Loads 0 Difficulty Rogue Special Mode Winter2019/RPGLIKE Game No. 77 Rogue 38 Adventurer 5 Explorer 34 Win Type - Total 19 Types 10/0/4/4/1/0/0/0/0 Lore% 75 Gallery% 70 Achievement% 76 Wizard Run 0 Options --------- ASCII 0 Keyboard 0 Movement Mouse Keybinds 0 Fullscreen 1 Font 18/Terminus Map View 76x50 Tactical HUD 1 Map Filters NONE Filters NONE Steam 1 RUN: af03dc2a-ba67-4a75-8b3b-48b7aea5ee1c